bitfinex/quotes_ETHUSD_20250909
["timestamp","ask_amount","ask_price","bid_price","bid_amount"]
[1757442632842,5.57556772,4290.8,4290.7,0.002]
[1757442633041,6.245,4290.4,4290.3,0.002]
[1757442633204,21.52240093,4290.4,4290.3,0.002]
[1757442633407,24.21640619,4290.4,4290.3,0.002]
[1757442633606,25.67348918,4290.4,4290.3,0.002]
[1757442635027,16.64616127,4290.4,4290.3,0.002]
[1757442635231,25.36158918,4290.4,4290.3,0.002]
[1757442635600,25.53562923,4290.4,4290.3,0.002]
[1757442636003,25.84752923,4290.4,4290.3,0.002]
[1757442636249,26.47504609,4290.4,4290.3,0.002]
[1757442636405,26.16314609,4290.4,4290.3,0.002]
[1757442636606,25.53562923,4290.4,4290.3,0.002]
[1757442638282,32.65562923,4290.4,4290.3,0.002]
[1757442639356,27.52452923,4290.4,4290.3,0.2892]
[1757442639683,18.80910132,4290.4,4290.3,1.2197]
[1757442639843,14.08190804,4290.4,4290.3,1.2197]
[1757442640042,13.50182505,4290.4,4290.3,1.2197]
[1757442643988,13.327785,4290.4,4290.3,1.2197]
[1757442644190,13.326785,4290.4,4290.3,1.2197]
[1757442644396,13.50349829,4290.4,4290.3,1.2197]
[1757442646601,13.50349829,4290.4,4290.3,0.7223]
[1757442646750,18.08691944,4290.4,4290.3,0.002]
[1757442647654,18.08691944,4290.4,4290.3,0.2892]
[1757442648990,18.08691944,4290.4,4290.3,0.002]
[1757442650092,18.09011944,4290.4,4290.3,0.002]
[1757442650800,27.91990034,4290.4,4290.3,0.002]
[1757442651003,28.23490034,4290.4,4290.3,0.002]
[1757442651172,28.4527336,4290.4,4290.3,0.002]
[1757442652160,28.1377336,4290.4,4290.3,0.002]
[1757442652365,29.2447336,4290.4,4290.3,0.002]
[1757442655453,28.9297336,4290.4,4290.3,0.002]
[1757442657353,31.3827336,4290.4,4290.3,0.002]
[1757442658798,32.01025046,4290.4,4290.3,0.002]
[1757442659010,31.3827336,4290.4,4290.3,0.002]
[1757442659304,32.01025046,4290.4,4290.3,0.002]
[1757442663209,32.01040902,4290.4,4290.3,0.002]
[1757442663648,31.52540902,4290.4,4290.3,0.002]
[1757442663819,31.52860902,4290.4,4290.3,0.002]
[1757442664143,31.99151242,4290.4,4290.3,0.002]
[1757442667793,29.53851242,4290.4,4290.3,0.002]
[1757442668765,29.07561242,4290.4,4290.3,0.002]
[1757442669256,28.44809556,4290.4,4290.3,0.002]
[1757442669558,28.44811979,4290.4,4290.3,0.002]
[1757442669866,28.91101979,4290.4,4290.3,0.002]
[1757442670595,28.91101979,4290.4,4289.9,0.002]
[1757442670596,30.43123479,4290.4,4289.9,0.002]
[1757442670722,30.43123479,4290.4,4288.4,0.002]
[1757442670723,2.33127404,4289.5,4289.1,0.509]
[1757442671059,27.06282935,4289.5,4289.1,0.509]
[1757442671261,27.91340179,4289.5,4289.1,0.509]
[1757442671765,28.61334614,4289.5,4289.1,0.509]
[1757442672266,28.61654614,4289.5,4289.1,0.509]
[1757442672679,28.61654614,4289.5,4289.1,0.042]
[1757442672822,34.35079459,4289.5,4289.1,0.042]
[1757442673017,33.72244614,4289.5,4289.1,0.042]
[1757442675361,33.72244614,4289.5,4288.4,0.002]
[1757442675362,3.12365454,4288.8,4288.4,0.002]
[1757442675598,16.44622698,4288.8,4288.4,0.002]
[1757442675769,18.02964813,4288.8,4288.4,0.002]
[1757442676098,18.49864813,4288.8,4288.4,0.002]
[1757442676395,18.50184813,4288.8,4288.4,0.002]
[1757442676700,20.95484813,4288.8,4288.4,0.002]
[1757442676992,20.95484813,4288.8,4288.4,0.469]
[1757442677398,4.78487202,4288.4,4288.3,0.002]
[1757442677696,20.84147892,4288.4,4288.3,0.002]
[1757442677995,21.34333874,4288.4,4288.3,0.002]
[1757442678496,21.12552631,4288.4,4288.3,0.3146]
[1757442679500,21.12552631,4288.4,4288.3,0.002]
[1757442680497,21.12552631,4288.4,4288.3,0.7816]
[1757442680804,12.27921904,4288.4,4288.3,1.2789]
[1757442681358,7.90035922,4288.4,4288.3,1.2789]
[1757442681567,10.99887202,4288.4,4288.3,1.2789]
[1757442682463,18.3686871,4288.4,4288.3,1.2789]
[1757442683792,18.3686871,4288.4,4288.3,0.7816]
[1757442684940,18.3686871,4288.4,4288.3,1.2789]
[1757442686693,1.79,4288.4,4288.3,1.2789]
[1757442687195,5.667,4288.4,4288.3,1.2789]
[1757442689614,7.99887202,4288.4,4288.3,1.2789]
[1757442690938,19.61803872,4288.4,4288.3,0.002]
[1757442692658,19.93303872,4288.4,4288.3,0.002]
[1757442693030,12.81303872,4288.4,4288.3,0.002]
[1757442694657,13.445261,4288.4,4288.3,0.002]
[1757442695218,13.130261,4288.4,4288.3,0.002]
[1757442696430,13.34804958,4288.4,4288.3,0.002]
[1757442701286,13.34832332,4288.4,4288.3,0.002]
[1757442702147,28.6311384,4288.4,4288.0,0.002]
[1757442702374,6.24003516,4288.1,4288.0,0.002]
[1757442702654,10.96931976,4288.1,4288.0,0.002]
[1757442702852,11.06898118,4288.1,4288.0,0.002]
[1757442703189,18.83085591,4288.1,4288.0,0.002]
[1757442704480,19.97794917,4288.1,4288.0,0.002]
[1757442704788,20.23137412,4288.1,4288.0,0.002]
[1757442705151,0.792,4287.9,4287.8,1e-08]
[1757442705393,6.12436151,4287.5,4287.4,0.002]
[1757442705689,27.26953793,4287.5,4287.4,0.002]
[1757442705879,29.36657431,4287.5,4287.4,0.002]
[1757442706282,28.7382989,4287.5,4287.4,0.002]
[1757442707154,29.57599945,4287.5,4287.4,0.002]
[1757442707755,28.7382989,4287.5,4287.4,0.002]
[1757442708978,28.26910211,4287.5,4287.4,0.002]
[1757442709589,28.73810211,4287.5,4287.4,0.002]
[1757442710301,29.36510334,4287.5,4287.4,0.002]
[1757442713313,28.26910211,4287.5,4287.4,0.002]
[1757442714016,28.25970211,4287.5,4287.4,0.002]
[1757442714423,28.27200211,4287.5,4287.4,0.002]
[1757442716669,28.25970211,4287.5,4287.4,0.002]
[1757442717093,29.67000211,4287.5,4287.4,0.002]
[1757442718243,29.65770211,4287.5,4287.4,0.002]
[1757442718547,30.13900211,4287.5,4287.4,0.002]
[1757442719199,30.76600334,4287.5,4287.4,0.002]
[1757442719398,30.29700334,4287.5,4287.4,0.002]
[1757442719638,30.28470334,4287.5,4287.4,0.002]
[1757442719806,16.84688826,4287.5,4287.4,0.735]
[1757442720013,28.09570334,4287.5,4287.4,1.2106]
[1757442720325,28.09570334,4287.5,4287.4,0.735]
[1757442721297,28.09570334,4287.5,4287.4,0.2944]
[1757442721497,24.46770211,4287.5,4287.4,0.002]
[1757442721727,24.46770211,4287.5,4287.4,0.7469]
[1757442721939,24.46770211,4287.5,4287.4,1.231]
[1757442722304,25.09470334,4287.5,4287.4,0.7469]
[1757442723203,25.09470334,4287.5,4287.4,0.3139]
[1757442723403,25.09470334,4287.5,4287.4,0.7469]
[1757442724531,20.59070211,4287.5,4287.4,1.231]
[1757442724742,24.46770211,4287.5,4287.4,1.231]
[1757442724909,24.46770211,4287.5,4287.4,0.7469]
[1757442725618,24.46770211,4287.5,4287.4,0.002]
[1757442725619,30.06670211,4287.5,4287.4,0.002]
[1757442726356,30.69387318,4287.5,4287.4,0.002]
[1757442728947,30.07007195,4287.5,4287.4,0.002]
[1757442729242,30.53817195,4287.5,4287.4,0.002]
[1757442730532,3.24041591,4287.4,4287.1,0.04]
[1757442730708,0.792,4287.1,4286.8,0.025]
[1757442730907,12.38425703,4287.0,4286.8,0.025]
[1757442731107,2.33285121,4286.6,4286.5,0.435]
[1757442731356,16.79227467,4286.6,4286.5,0.002]
[1757442731506,18.10254215,4286.6,4286.5,0.002]
[1757442732424,18.53554215,4286.6,4286.5,0.002]
[1757442732653,25.65874215,4286.6,4286.5,0.002]
[1757442733637,25.65554215,4286.6,4286.5,0.002]
[1757442737242,25.65874215,4286.6,4286.5,0.002]
[1757442737575,25.65554215,4286.6,4286.5,0.002]
[1757442738686,25.65874215,4286.6,4286.5,0.002]
[1757442739236,25.65554215,4286.6,4286.5,0.002]
[1757442739644,25.65554215,4286.6,4286.5,0.3139]
[1757442741657,25.95614215,4286.6,4286.5,0.002]
[1757442742376,27.3245562,4286.6,4286.5,0.002]
[1757442742577,27.0239562,4286.6,4286.5,0.002]
[1757442744055,30.0271562,4286.6,4286.5,0.002]
[1757442747265,30.0239562,4286.6,4286.5,0.002]
[1757442748109,30.0239562,4286.6,4286.5,0.7469]
[1757442748278,32.4789562,4286.6,4286.5,0.7469]
[1757442748476,30.0239562,4286.6,4286.5,0.3139]
[1757442748882,30.0229562,4286.6,4286.5,0.3139]
[1757442749077,30.0229562,4286.6,4286.5,0.7469]
[1757442749309,29.2309562,4286.6,4286.5,1.231]
[1757442749962,29.2309562,4286.6,4286.5,0.7469]
[1757442750601,2.33296005,4286.4,4286.3,0.4841]
[1757442750807,7.8713008,4286.4,4286.3,0.4841]
[1757442751106,8.21995978,4286.4,4286.3,0.796]
[1757442751682,4.34295978,4286.4,4286.3,0.796]
[1757442751882,8.21995978,4286.4,4286.3,0.796]
[1757442752084,8.21995978,4286.4,4286.3,0.7906]
[1757442752706,13.81995978,4286.4,4286.3,1.2472]
[1757442752910,14.32155845,4286.4,4286.3,1.2472]
[1757442753783,20.8132844,4286.4,4286.3,1.2472]
[1757442753980,20.59532598,4286.4,4286.3,1.2472]
[1757442754414,20.81353982,4286.4,4286.3,1.2472]
[1757442754574,20.81353982,4286.4,4286.3,0.7631]
[1757442755671,2.33306891,4286.2,4286.1,0.4966]
[1757442755913,6.21006891,4286.2,4286.1,0.04]
[1757442756108,6.34076947,4286.2,4286.1,0.04]
[1757442756314,6.34076947,4286.2,4286.1,0.3465]
[1757442756517,6.34076947,4286.2,4286.1,1.2636]
[1757442757784,0.13070056,4286.2,4286.1,1.2636]
[1757442757989,0.13070056,4286.2,4286.1,1.39286]
[1757442757990,3.877,4286.2,4286.1,1.39286]
[1757442758587,3.877,4286.2,4286.1,1.2636]
[1757442759416,0.116,4286.3,4286.1,1.2636]
[1757442759575,0.116,4286.3,4286.1,2.67962335]
[1757442759776,3.881,4286.2,4286.1,0.3465]
[1757442760207,3.881,4286.2,4286.1,1.2636]
[1757442760514,3.881,4286.2,4286.1,1.6261747]
[1757442760680,3.881,4286.2,4286.1,3.95929805]
[1757442761120,3.881,4286.2,4286.1,3.19619805]
[1757442761319,3.881,4286.2,4286.1,3.95929805]
[1757442761823,0.116,4286.4,4286.3,2.33301448]
[1757442762035,3.997,4286.4,4286.3,3.26894573]
[1757442762178,3.997,4286.4,4286.3,4.18604573]
[1757442762488,3.997,4286.4,4286.3,1.2236]
[1757442764730,3.996,4286.4,4286.3,1.2236]
[1757442768485,3.996,4286.4,4286.1,0.04]
[1757442768704,4.1658,4286.4,4286.1,0.04]
[1757442769018,2.33306891,4286.2,4286.1,0.04]
[1757442769319,7.19391725,4286.2,4286.1,0.04]
[1757442769499,8.43631725,4286.2,4286.1,0.04]
[1757442775017,8.43631725,4286.2,4286.1,0.042]
[1757442778223,7.96701725,4286.2,4286.1,0.042]
[1757442778425,8.43631725,4286.2,4286.1,0.042]
[1757442784007,7.47971725,4286.2,4286.1,0.042]
[1757442784644,8.37231725,4286.2,4286.1,0.042]
[1757442785646,8.37031725,4286.2,4286.1,0.042]
[1757442786210,11.87223332,4286.2,4286.1,0.042]
[1757442786940,10.97963332,4286.2,4286.1,0.042]
[1757442787145,11.87223332,4286.2,4286.1,0.042]
[1757442787522,13.27323332,4286.2,4286.1,0.042]
[1757442787723,11.87223332,4286.2,4286.1,0.042]
[1757442788734,12.00291136,4286.2,4286.1,0.042]
[1757442789319,19.12291136,4286.2,4286.1,0.042]
[1757442791361,18.68731136,4286.2,4286.1,0.042]
[1757442791551,27.86114049,4286.2,4286.1,0.042]
[1757442792948,28.07897435,4286.2,4286.1,0.042]
[1757442796753,28.07908858,4286.2,4286.1,0.042]
[1757442797341,28.70657679,4286.2,4286.1,0.042]
[1757442798463,28.07908858,4286.2,4286.1,0.042]
[1757442799253,28.07998676,4286.2,4286.1,0.042]
[1757442801972,27.62298676,4286.2,4286.1,0.042]
[1757442802466,27.18738676,4286.2,4286.1,0.042]
[1757442804145,27.62298676,4286.2,4286.1,0.042]
[1757442804386,26.26421544,4286.2,4286.1,0.042]
[1757442804734,25.82861544,4286.2,4286.1,0.042]
[1757442805748,18.70861544,4286.2,4286.1,0.042]
[1757442807413,18.42281544,4286.2,4286.1,0.042]
[1757442807578,7.16335763,4286.2,4286.1,1.2868]
[1757442807779,11.04235763,4286.2,4286.1,1.2868]
[1757442808401,6.81337236,4286.2,4286.1,1.2868]
[1757442808707,10.06450929,4286.2,4286.1,1.2868]
[1757442810920,10.06450929,4286.2,4286.1,0.8123]
[1757442811601,10.06450929,4286.2,4286.1,1.2868]
[1757442811910,7.06450929,4286.2,4286.1,1.2868]
[1757442812213,10.06450929,4286.2,4286.1,1.2868]
[1757442812408,12.33241726,4286.2,4286.1,1.2868]
[1757442812793,8.45241726,4286.2,4286.1,1.2868]
[1757442812993,12.33141726,4286.2,4286.1,1.2868]
[1757442813220,12.33141726,4286.2,4286.1,0.8123]
[1757442813777,8.45241726,4286.2,4286.1,0.8123]
[1757442814094,8.45241726,4286.2,4286.1,0.3463]
[1757442814578,12.33141726,4286.2,4286.1,0.3463]
[1757442815189,12.33195154,4286.2,4286.1,0.3463]
[1757442822684,12.33211196,4286.2,4286.1,0.3463]
[1757442824817,8.45311196,4286.2,4286.1,0.3463]
[1757442825022,12.33011196,4286.2,4286.1,0.3463]
[1757442827202,8.45311196,4286.2,4286.1,0.042]
[1757442827454,12.33011196,4286.2,4286.1,0.042]
[1757442828625,12.33011196,4286.2,4286.1,0.3446]
[1757442830325,12.33034883,4286.2,4286.1,0.3446]
[1757442830553,14.12234883,4286.2,4286.1,0.3446]
[1757442831257,14.12234883,4286.2,4286.1,0.042]
[1757442832462,14.7512119,4286.2,4286.1,0.042]
[1757442833122,2.64437195,4286.2,4286.1,1.2865]
[1757442833481,5.669,4286.2,4286.1,1.2865]
[1757442833979,1.792,4286.2,4286.1,1.2865]
[1757442834122,5.669,4286.2,4286.1,1.2865]
[1757442834322,5.669,4286.2,4286.1,3.61962335]
[1757442834628,5.669,4286.2,4286.1,4.92961388]
[1757442835218,1.792,4286.2,4286.1,4.92961388]
[1757442835424,5.669,4286.2,4286.1,5.04561388]
[1757442836061,1.792,4286.2,4286.1,5.04561388]
[1757442836267,5.67,4286.2,4286.1,5.04561388]
[1757442836559,1.792,4286.2,4286.1,5.04561388]
[1757442836743,5.67,4286.2,4286.1,5.04561388]
[1757442837447,5.67,4286.2,4286.1,8.04561388]
[1757442837847,1.792,4286.2,4286.1,8.04561388]
[1757442838039,5.67,4286.2,4286.1,8.04561388]
[1757442838437,1.792,4286.2,4286.1,8.83761388]
[1757442838777,0.001,4286.5,4286.4,3.12496005]
[1757442839065,3.042,4286.5,4286.4,3.12496005]
[1757442839267,3.042,4286.5,4286.4,3.54356005]
[1757442839467,3.042,4286.5,4286.4,4.48546005]
[1757442843768,3.042,4286.5,4286.4,5.18549913]
[1757442843931,3.042,4286.5,4286.4,6.34757513]
[1757442845564,0.001,4286.5,4286.4,6.34757513]
[1757442845747,0.001,4286.5,4286.4,9.34757513]
[1757442852696,0.001,4286.5,4286.4,0.81603908]
[1757442852697,1.2466,4286.5,4286.4,0.81603908]
[1757442853249,1.2466,4286.5,4286.4,0.116]
[1757442854248,1.2466,4286.5,4286.1,0.042]
[1757442854483,3.876,4286.4,4286.1,0.042]
[1757442854854,0.3163,4286.2,4286.1,2.37511903]
[1757442856012,0.3163,4286.2,4286.1,0.042]
[1757442856214,0.3163,4286.2,4286.1,2.37512335]
[1757442858118,0.70022536,4286.3,4286.2,2.33306891]
[1757442859171,1.01652536,4286.3,4286.2,2.33306891]
[1757442861007,0.70022536,4286.3,4286.2,2.33306891]
[1757442861185,4.57622536,4286.3,4286.2,3.58382857]
[1757442861397,3.876,4286.3,4286.2,4.00359789]
[1757442862815,0.001,4286.5,4286.2,4.00359789]
[1757442862816,0.001,4286.5,4286.4,2.33296005]
[1757442862979,3.877,4286.5,4286.4,3.06415916]
[1757442863178,3.877,4286.5,4286.4,4.26365916]
[1757442864309,3.877,4286.5,4286.4,4.35632956]
[1757442865013,3.877,4286.5,4286.4,3.46302956]
[1757442865624,3.877,4286.5,4286.4,4.35632956]
[1757442865823,3.877,4286.5,4286.4,5.14832956]
[1757442865824,0.001,4286.5,4286.4,5.14832956]
[1757442866118,3.877,4286.5,4286.4,5.84837192]
[1757442867118,0.001,4286.5,4286.4,5.84837192]
[1757442867331,0.001,4286.5,4286.4,8.84837192]
[1757442869433,0.001,4286.5,4286.4,12.72437192]
[1757442883780,0.3102,4286.5,4286.4,7.64887192]
[1757442883978,1.2419,4286.5,4286.4,3.14900241]
[1757442884165,1.2419,4286.5,4286.4,2.44896005]
[1757442887843,0.001,4286.5,4286.4,3.54696005]
[1757442888049,0.001,4286.5,4286.4,4.18797295]
[1757442888247,0.001,4286.5,4286.4,7.8879663]
[1757442889048,0.001,4286.5,4286.4,8.3300663]
[1757442890188,0.001,4286.5,4286.4,7.8879663]
[1757442890488,0.001,4286.5,4286.4,8.7825663]
[1757442891763,0.001,4286.5,4286.4,8.3300663]
[1757442891987,0.001,4286.5,4286.4,7.18797295]
[1757442892487,0.001,4286.5,4286.4,7.63007295]
[1757442893773,0.001,4286.5,4286.4,7.18797295]
[1757442894689,0.001,4286.5,4286.4,7.63007295]
[1757442897006,0.001,4286.5,4286.4,7.18797295]
[1757442900495,0.001,4286.5,4286.4,7.63007295]
[1757442902524,1.2458,4286.5,4286.4,6.88197295]
[1757442902739,1.2458,4286.5,4286.4,2.44896005]
[1757442904884,5.1218,4286.5,4286.3,0.002]
[1757442905299,5.2378,4286.5,4286.3,0.002]
[1757442905702,5.2378,4286.5,4286.3,2.335009]
[1757442905898,1.46778,4286.4,4286.3,2.335009]
[1757442906329,1.76858,4286.4,4286.3,0.002]
[1757442906523,1.76858,4286.4,4286.3,2.33501448]
[1757442907302,5.1218,4286.4,4286.3,2.33501448]
[1757442908426,0.3008,4286.4,4286.3,2.33501448]
[1757442908735,0.001,4286.5,4286.4,2.33296005]
[1757442909034,0.001,4286.5,4286.4,7.21368965]
[1757442909337,0.001,4286.5,4286.4,7.49436005]
[1757442909533,0.001,4286.5,4286.4,8.7148095]
[1757442910536,1e-08,4287.0,4286.9,3.12468795]
[1757442910735,1e-08,4287.0,4286.9,3.26401482]
[1757442910898,1e-08,4287.0,4286.9,4.12769253]
[1757442911237,1e-08,4287.0,4286.9,8.07709253]
[1757442911546,0.001,4288.0,4287.7,3.12425272]
[1757442911753,0.001,4288.0,4287.9,6.12414393]
[1757442912036,0.001,4288.0,4287.9,7.62301431]
[1757442912551,1.2458,4288.0,4287.9,3.52701431]
[1757442912722,1.2458,4288.0,4286.7,3.0]
[1757442912921,0.944,4287.9,4287.7,2.33223166]
[1757442913127,3.0358,4287.8,4287.6,0.116]
[1757442913309,3.883,4287.7,4287.6,0.116]
[1757442913816,5.1278,4287.7,4287.6,0.116]
[1757442918237,5.1278,4287.7,4287.2,2.33251474]
[1757442918461,0.944,4287.6,4287.3,0.116]
[1757442918760,0.116,4287.5,4286.8,0.141]
[1757442918946,0.3008,4286.9,4286.8,2.47374237]
[1757442919257,5.1278,4286.9,4286.8,2.47374237]
[1757442919761,5.1278,4286.9,4286.8,0.141]
[1757442919987,5.1278,4286.9,4286.8,2.47374237]
[1757442920737,5.1278,4286.9,4286.8,0.141]
[1757442920937,5.1278,4286.9,4286.8,2.47374237]
[1757442921340,5.1278,4286.9,4286.8,0.141]
[1757442921660,5.1278,4286.9,4286.8,2.47374237]
[1757442923974,5.1278,4286.9,4286.8,0.141]
[1757442924355,5.1278,4286.9,4286.8,2.47374237]
[1757442925986,3.883,4286.9,4286.8,2.77774237]
[1757442926685,3.883,4286.9,4286.8,2.47374237]
[1757442928081,3.883,4286.9,4286.8,2.77774237]
[1757442928664,1.791,4287.0,4286.9,2.33268795]
[1757442928868,5.672,4287.0,4286.9,2.33268795]
[1757442929051,5.672,4287.0,4286.9,2.63668795]
[1757442932708,5.9687,4287.0,4286.9,2.33268795]
[1757442936402,6.4006,4287.0,4286.8,0.141]
[1757442936702,5.9687,4287.0,4286.8,0.141]
[1757442936905,5.9687,4287.0,4286.8,0.025]
[1757442936906,0.9209,4286.9,4286.8,0.025]
[1757442937276,1.2176,4286.9,4286.8,0.025]
[1757442938834,1.2176,4286.9,4286.8,0.027]
[1757442942891,0.7857,4286.9,4286.8,0.027]
[1757442943117,1.2176,4286.9,4286.8,0.027]
[1757442943513,0.7286,4286.9,4286.8,0.027]
[1757442943825,1.2176,4286.9,4286.8,0.027]
[1757442944431,0.2967,4286.9,4286.8,0.027]
[1757442946025,1.2176,4286.9,4286.8,0.027]
[1757442952428,3.55028795,4286.9,4286.8,0.027]
[1757442952598,1.2176,4286.9,4286.8,0.027]
[1757442955142,0.2967,4286.9,4286.8,0.027]
[1757442955642,5.672,4287.0,4286.8,0.3134]
[1757442955939,0.2967,4286.9,4286.8,0.027]
[1757442956306,0.7857,4286.9,4286.8,0.027]
[1757442956533,1.2176,4286.9,4286.8,0.027]
[1757442957511,2.15141909,4286.9,4286.8,0.027]
[1757442957925,4.48410704,4286.9,4286.8,0.027]
[1757442958256,2.15141909,4286.9,4286.8,0.027]
[1757442959861,4.48410704,4286.9,4286.8,0.027]
[1757442960560,2.15141909,4286.9,4286.8,0.027]
[1757442961635,1.2176,4286.9,4286.8,0.027]
[1757442961834,0.7286,4286.9,4286.8,0.027]
[1757442962067,5.672,4287.0,4286.8,0.3222]
[1757442962221,5.672,4287.0,4286.8,0.027]
[1757442962425,0.2999,4286.9,4286.8,0.027]
[1757442962673,0.7715,4286.9,4286.8,0.027]
[1757442962823,4.49258134,4286.9,4286.8,0.027]
[1757442963132,11.86265135,4286.9,4286.8,0.027]
[1757442963333,4.99590345,4286.9,4286.8,0.027]
[1757442966359,4.49258134,4286.9,4286.8,0.027]
[1757442966519,4.99590171,4286.9,4286.8,0.027]
[1757442966922,4.52430171,4286.9,4286.8,0.027]
[1757442967162,8.36958134,4286.9,4286.8,0.027]
[1757442967332,8.87290171,4286.9,4286.8,0.027]
[1757442970071,16.24297172,4286.9,4286.8,0.027]
[1757442970432,19.24297172,4286.9,4286.8,0.027]
[1757442970768,19.70594326,4286.9,4286.8,0.027]
[1757442971131,20.54407218,4286.9,4286.8,0.027]
[1757442971334,20.43049131,4286.9,4286.8,0.027]
[1757442972173,19.59236239,4286.9,4286.8,0.027]
[1757442975078,20.22009805,4286.9,4286.8,0.027]
[1757442976405,27.34009805,4286.9,4286.8,0.027]
[1757442976984,27.33983216,4286.9,4286.8,0.027]
[1757442979059,2.33290563,4286.5,4286.4,0.002]
[1757442979246,13.57997564,4286.5,4286.4,0.002]
[1757442979446,15.65772079,4286.5,4286.4,0.002]
[1757442979868,15.6563769,4286.5,4286.4,0.002]
[1757442982272,22.7763769,4286.5,4286.4,0.002]
[1757442982477,23.94479649,4286.5,4286.4,0.002]
[1757442983067,23.94422915,4286.5,4286.4,0.002]
[1757442984267,23.94414441,4286.5,4286.4,0.002]
[1757442990410,25.31221655,4286.5,4286.4,0.002]
[1757442990813,28.93968715,4286.5,4286.4,0.002]
[1757442991478,28.31221655,4286.5,4286.4,0.002]
[1757442992468,32.16821655,4286.5,4286.4,0.002]
[1757442992673,28.31221655,4286.5,4286.4,0.002]
[1757442994201,27.85841655,4286.5,4286.4,0.002]
[1757442994362,27.38681655,4286.5,4286.4,0.002]
[1757442996067,28.22494547,4286.5,4286.4,0.002]
[1757442997161,28.66144547,4286.5,4286.4,0.002]
[1757442997601,5.44896005,4286.4,4286.3,1e-08]
[1757442997804,13.32960262,4286.4,4286.3,1e-08]
[1757442997989,14.05820262,4286.4,4286.3,1e-08]
[1757442998302,15.31099251,4286.4,4286.3,1e-08]
[1757442998467,13.12610262,4286.4,4286.3,1e-08]
[1757442998670,14.37889251,4286.4,4286.3,1e-08]
[1757442998917,13.12610262,4286.4,4286.3,1e-08]
[1757442999090,14.81539251,4286.4,4286.3,1e-08]
[1757443000194,15.31099251,4286.4,4286.3,1e-08]
[1757443002419,14.37889251,4286.4,4286.3,1e-08]
[1757443002826,13.12610262,4286.4,4286.3,1e-08]
[1757443003028,20.24610262,4286.4,4286.3,1e-08]
[1757443003702,20.74170262,4286.4,4286.3,1e-08]
[1757443003905,21.17820262,4286.4,4286.3,1e-08]
[1757443004993,20.24610262,4286.4,4286.3,1e-08]
[1757443006431,20.24610262,4286.4,4286.3,0.31240001]
[1757443006432,23.83200262,4286.4,4286.3,0.31240001]
[1757443008031,23.83200262,4286.4,4286.3,1e-08]
[1757443008200,24.12410262,4286.4,4286.3,1e-08]
[1757443008827,25.05620262,4286.4,4286.3,1e-08]
[1757443009035,24.12410262,4286.4,4286.3,1e-08]
[1757443009432,19.95400262,4286.4,4286.3,1e-08]
[1757443009730,23.83200262,4286.4,4286.3,0.31240001]
[1757443013917,23.83200262,4286.4,4286.3,1e-08]
[1757443014649,25.62400262,4286.4,4286.3,1e-08]
[1757443015108,21.74600262,4286.4,4286.3,1e-08]
[1757443015316,25.62400262,4286.4,4286.3,0.31240001]
[1757443016115,25.91610262,4286.4,4286.3,1e-08]
[1757443016828,26.35260262,4286.4,4286.3,1e-08]
[1757443017445,25.91610262,4286.4,4286.3,1e-08]
[1757443021040,25.91693464,4286.4,4286.3,1e-08]
[1757443021235,25.62483464,4286.4,4286.3,1e-08]
[1757443021836,25.62483464,4286.4,4286.3,0.28860001]
[1757443022821,25.62483464,4286.4,4286.3,0.74320001]
[1757443023276,26.38923464,4286.4,4286.3,1e-08]
[1757443023625,25.93613464,4286.4,4286.3,1e-08]
[1757443024128,26.87863464,4286.4,4286.3,1e-08]
[1757443024985,26.87963464,4286.4,4286.3,1e-08]
[1757443027975,26.66100718,4286.4,4286.3,1e-08]
[1757443028198,26.87965106,4286.4,4286.3,1e-08]
[1757443028400,2.33317778,4286.0,4285.9,0.002]
[1757443028542,15.58097367,4286.0,4285.9,0.002]
[1757443028878,19.11091755,4286.0,4285.9,0.002]
[1757443029085,19.95066573,4286.0,4285.9,0.002]
[1757443029662,20.04405811,4286.0,4285.9,0.002]
[1757443029973,22.1549777,4286.0,4285.9,0.002]
[1757443030352,21.2124777,4286.0,4285.9,0.002]
[1757443030886,20.9011777,4286.0,4285.9,1.2109]
[1757443031394,20.9011777,4286.0,4285.9,0.2906]
[1757443031566,20.9011777,4286.0,4285.9,0.002]
[1757443035375,17.90169871,4286.0,4285.9,0.002]
[1757443035602,17.90171862,4286.0,4285.9,0.002]
[1757443036597,17.06197044,4286.0,4285.9,0.2906]
[1757443036804,17.90171862,4286.0,4285.9,0.2906]
[1757443038417,17.06197044,4286.0,4285.9,0.2906]
[1757443043819,17.06297044,4286.0,4285.9,0.2906]
[1757443044541,17.06297044,4286.0,4285.9,0.002]
[1757443044542,17.82737044,4286.0,4285.9,0.002]
[1757443044701,18.31677044,4286.0,4285.9,0.002]
[1757443044901,17.82737044,4286.0,4285.9,0.002]
[1757443045243,18.21401862,4286.0,4285.9,0.002]
[1757443045404,17.90271862,4286.0,4285.9,0.002]
[1757443045605,17.90271862,4286.0,4285.9,0.2906]
[1757443046942,20.90271173,4286.0,4285.9,0.2906]
[1757443047116,20.06296355,4286.0,4285.9,0.2906]
[1757443047504,10.15640181,4286.0,4285.9,1.2109]
[1757443050143,0.72756024,4286.0,4285.9,1.2109]
[1757443050302,3.878,4286.0,4285.9,1.2109]
[1757443050626,4.00919138,4286.0,4285.9,1.2109]
[1757443051235,0.001,4286.0,4285.9,1.33469]
[1757443051543,3.994,4286.0,4285.9,1.33469]
[1757443052130,3.994,4286.0,4285.9,0.2935]
[1757443052475,10.6600959,4286.0,4285.9,0.002]
[1757443052768,11.67505814,4286.0,4285.9,0.002]
[1757443053180,10.77895814,4286.0,4285.9,0.002]